Cogmind - Beta 15 *** ADVENTURER MODE // 2025.05.09 @ 16:43:42 Player: Jack Result: Self-destructed Performance ------------- Evolutions (3) 1500 Regions Visited (4) 800 Robots Destroyed (21) 105 Value Destroyed (474) 474 Prototype IDs (0) 0 Alien Tech Used (0) 0 Bonus (0) 0 TOTAL SCORE: 2879 Bonus ------- None Cogmind --------- Core Integrity 683/700 Matter 142/300 Energy 98/100 System Corruption 1% Temperature Cool (4) Movement Flying (37) Location -7/Factory Parts ------- > --- POWER (1) -------- (None) > --- PROPULSION (4) --- Flight Unit Flight Unit > --- UTILITY (6) ------ Advanced Visual Processing Unit Improved Signal Interpreter > --- WEAPON (2) ------- (None) > --- INVENTORY (5) ---- Multitool Peak State ------------ > --- POWER ------------ (None) > --- PROPULSION ------- Flight Unit Flight Unit Flight Unit > --- UTILITY ---------- Advanced Visual Processing Unit Improved Signal Interpreter > --- WEAPON ----------- Multitool > --- INVENTORY -------- (None) [Rating: 11] Favorites ----------- Power Light Ion Engine Engine Light Ion Engine Propulsion Light Treads Treads Light Treads Flight Unit Flight Unit Utility Scrap Shield Storage Small Storage Unit Processor Improved Signal Interpreter Protection Scrap Shield Weapon Light Assault Rifle Energy Gun Small Laser Ballistic Gun Light Assault Rifle Special Weapon Multitool Build | -11 -10 -10 -8 -7 ------- Run | Yrd Mat Sub Mat Fac Slots Evolved 6 | . . . 4 2 Power . | . . . . . Propulsion 2 | . . . 2 . Utility 4 | . . . 2 2 Weapon . | . . . . . Parts Attached 22 | 1 7 10 2 2 Power 1 | . . 1 . . Engine 1 | . . 1 . . Core . | . . . . . Reactor . | . . . . . Propulsion 8 | . 4 3 1 . Treads 2 | . . 2 . . Leg . | . . . . . Wheel . | . . . . . Hover . | . . . . . Flight 6 | . 4 1 1 . Utility 5 | 1 . 2 . 2 Device . | . . . . . Storage 1 | 1 . . . . Processor 2 | . . . . 2 Hackware . | . . . . . Protection 2 | . . 2 . . Artifact . | . . . . . Weapon 8 | . 3 4 1 . Energy Gun 4 | . 3 1 . . Energy Cannon . | . . . . . Ballistic Gun 3 | . . 3 . . Ballistic Cannon . | . . . . . Launcher . | . . . . . Special Weapon 1 | . . . 1 . Impact Weapon . | . . . . . Slashing Weapon . | . . . . . Piercing Weapon . | . . . . . Special Melee Weapon . | . . . . . Unidentified Prototypes . | . . . . . Parts Lost 7 | . 1 5 . 1 Power . | . . . . . Propulsion 3 | . . 2 . 1 Utility 2 | . . 2 . . Weapon 2 | . 1 1 . . Highest Loss Streak 2 | . 1 2 . 1 To Critical Strikes . | . . . . . Average Backups 4 | 4 7 4 1 . Power . | . 1 . . . Propulsion 2 | 2 4 2 . . Utility . | . . . . . Weapon 1 | 1 2 . . . Tool/Special . | . . . . . Unused Backups 2 | . . 2 . . Power . | . . . . . Propulsion 2 | . . 2 . . Utility . | . . . . . Weapon . | . . . . . Tool/Special . | . . . . . Average Slot Usage (%) 66 | . 51 80 25 35 Engine 8 | . . 13 . . Treads 16 | . . 26 . . Flight 7 | . 16 . 24 22 Storage 3 | . 14 . . . Protection 6 | . . 10 . . Energy Gun 13 | . 20 13 . . Ballistic Gun 8 | . . 14 . . Peak Build Rating 11 | 1 5 10 4 11 Average Rating 6 | . 3 8 2 7 On Entrance 2 | . 1 5 1 3 Naked Turns 6 | . . 6 . . Heaviest Build 26 | 5 8 26 . 2 Greatest Support 40 | 3 8 40 12 12 Greatest Overweight (x) 2 | 1 2 . . . Average Overweight (x) . | . . . . . Largest Inventory Capacity 8 | 8 8 8 5 5 Average Capacity 5 | 7 8 5 5 5 Most Carried 8 | 8 8 7 1 1 Average Carried 4 | 4 7 4 . . Final Capacity 8 | 8 8 5 5 5 Final Carried 8 | 8 7 2 1 1 Class Distribution -------------------- 100% | Mutant Dominant Class ---------------- Mutant | -10/Materials Mutant | -10/Subcaves Mutant | -8/Materials Mutant | -7/Factory Resources | -11 -10 -10 -8 -7 ----------- Run | Yrd Mat Sub Mat Fac Matter Collected 435 | . 148 287 . . Remotely . | . . . . . Salvage Created 685 | . 270 415 . . Parts 54 | . 25 29 . . Haulers Intercepted . | . . . . . Recyclers Shooed . | . . . . . Parts Field Recycled . | . . . . . Retrieved Matter . | . . . . . Parts Self-Destructed 4 | . . 4 . . Prevented . | . . . . . Kills | -11 -10 -10 -8 -7 ------- Run | Yrd Mat Sub Mat Fac Combat Hostiles Destroyed 20 | . 11 9 . . Guns 20 | . 11 9 . . Classes Destroyed 6 | . 3 3 . . Watcher 1 | . 1 . . . Swarmer 11 | . 9 2 . . Grunt 2 | . 2 . . . Artisan 1 | . . 1 . . Cobbler 1 | . . 1 . . Subdweller 7 | . . 7 . . Best Kill Streak 5 | . 5 2 . . Combat Bots Only 4 | . 4 2 . . Max Kills in Single Turn 2 | . 2 1 . . Gunslinging 1 | . 1 . . . Exploded . | . . . . . Melee . | . . . . . Uniques/NPCs Destroyed . | . . . . . Combat | -11 -10 -10 -8 -7 -------- Run | Yrd Mat Sub Mat Fac Hostile Shots Fired 163 | . 37 93 15 18 Missed 48 | . 10 19 9 10 Hits 115 | . 27 74 6 8 Projectile 115 | . 27 74 6 8 Critical Strikes 1 | . . 1 . . Damage Taken 1461 | . 187 1181 47 46 Core 294 | . 86 155 36 17 Absorbed by Shields . | . . . . . Ignored by Resistances 422 | . 64 328 15 15 Core Remaining (%) 65 | 100 . 3 93 . Volleys Fired 96 | . 22 74 . . Largest 2 | . 2 2 . . Hottest 80 | . 80 80 . . Shots Fired 179 | . 43 136 . . Gun 179 | . 43 136 . . Cannon . | . . . . . Launcher . | . . . . . Special . | . . . . . Kinetic 79 | . . 79 . . Thermal 79 | . 22 57 . . Explosive . | . . . . . Electromagnetic 21 | . 21 . . . Robot Hit Streak 35 | . 7 35 . . Robot Miss Streak 2 | . 2 2 . . Penetration Max . | . . . . . Secondary Targets 4 | . 3 1 . . Max Gunslinging Chain 1 | . 1 1 . . Shots Hit Robots 140 | . 30 110 . . Core Hits 44 | . 16 28 . . Critical Kills 2 | . . 2 . . Critical Parts Destroyed 2 | . . 2 . . Critical Strikes 5 | . . 5 . . Destroy 5 | . . 5 . . Melee Attacks . | . . . . . Impact . | . . . . . Slashing . | . . . . . Piercing . | . . . . . Sneak Attacks . | . . . . . Combat Hostiles . | . . . . . Follow-up Attacks . | . . . . . Damage Inflicted 1544 | . 384 1160 . . Guns 1500 | . 364 1136 . . Cannons . | . . . . . Explosions 20 | . 20 . . . Melee . | . . . . . Ramming 24 | . . 24 . . Kinetic 480 | . . 480 . . Thermal 846 | . 190 656 . . Explosive . | . . . . . Electromagnetic 194 | . 194 . . . Impact . | . . . . . Slashing . | . . . . . Piercing . | . . . . . Highest Corruption 2 | . . 2 . 1 Average Corruption 1 | . . 2 . 1 Corruption Purged . | . . . . . Corruption Blocked . | . . . . . Effects 3 | . . . . 3 Message Errors 1 | . . . . 1 Energy Discharges 1 | . . . . 1 Parts Rejected 1 | . . . . 1 Overload Shots . | . . . . . Overflow Damage . | . . . . . Projectiles . | . . . . . Explosions . | . . . . . Melee . | . . . . . Knockbacks . | . . . . . Impact . | . . . . . Kinetic . | . . . . . Secondary . | . . . . . Self-Inflicted Damage 28 | . 4 24 . . Shots 1 | . 1 . . . Rammed . | . . . . . Targets Rammed . | . . . . . Kicked . | . . . . . Crushed . | . . . . . Highest Temperature 49 | . 49 12 . . Average Temperature 12 | . 14 6 . . Received Heat Transfer 336 | . 18 291 9 18 Siege Activations . | . . . . . Martial Activations . | . . . . . Shielding Activations . | . . . . . Robots Disrupted . | . . . . . Combat Hostiles . | . . . . . Robots Corrupted . | . . . . . Combat Hostiles . | . . . . . Parts Fried . | . . . . . Impact Corruptions . | . . . . . Robots Melted . | . . . . . Combat Hostiles . | . . . . . Parts Melted 1 | . . 1 . . Heat Transferred 1525 | . 425 1100 . . Parts Sabotaged . | . . . . . Parts Stolen . | . . . . . Parts Stripped . | . . . . . Power Chain Reactions 1 | . 1 . . . Alert | -11 -10 -10 -8 -7 ------- Run | Yrd Mat Sub Mat Fac Maximum Alert Level . | . . . . . Low Security (%) 100 | 100 100 . 100 100 Level 1 . | . . . . . Level 2 . | . . . . . Level 3 . | . . . . . Level 4 . | . . . . . Level 5 . | . . . . . High Security . | . . . . . Max Security . | . . . . . Peak Influence 175 | . 175 . 45 15 Initial 13 | . . . . 13 Average 50 | . 77 . 22 3 Influence Increases 458 | . 285 80 75 18 Destroy 0b10 Robot/C 260 | . 220 40 . . Destroy 0b10 Robot/NC 5 | . 5 . . . Destroy Leader 52 | . 42 10 . . Successful Hack 3 | . . . . 3 Destroy Structure 3 | . 3 . . . Partial Spotted 75 | . 15 . 45 15 Lose Combat Pursuer 60 | . . 30 30 . Influence Decreases 458 | . 180 185 40 53 Entered New Map 80 | . . 58 . 22 Time Decay 368 | . 170 127 40 31 Lost Part 10 | . 10 . . . Squads Dispatched 9 | . 3 . 3 3 Investigation 5 | . 3 . . 2 Extermination . | . . . . . Reinforcement 4 | . . . 3 1 Assault . | . . . . . Garrison . | . . . . . Intercept . | . . . . . Searches Triggered . | . . . . . Construction Impeded . | . . . . . Haulers Reinforced . | . . . . . Active Scanning Responses . | . . . . . Cargo Convoy Interrupts . | . . . . . Stealth | -11 -10 -10 -8 -7 --------- Run | Yrd Mat Sub Mat Fac Distress Signals 3 | . 1 . 2 . Communications Jammed . | . . . . . Distress Signals . | . . . . . Times Spotted 41 | . 15 13 10 3 Peak Tracking Total 7 | . 3 3 7 2 Tactical Retreats 3 | . . 1 2 . Traps | -11 -10 -10 -8 -7 ------- Run | Yrd Mat Sub Mat Fac Traps Triggered 2 | . 2 . . . Indirectly . | . . . . . Trap Hack Attempts . | . . . . . Triggered . | . . . . . Disarmed . | . . . . . Reprogrammed . | . . . . . Reused . | . . . . . Traps Extracted . | . . . . . Installed . | . . . . . Triggered . | . . . . . Machines | -11 -10 -10 -8 -7 ---------- Run | Yrd Mat Sub Mat Fac Machines Disabled . | . . . . . Max in Single Turn . | . . . . . Machines Repaired . | . . . . . Machines Dismantled . | . . . . . Machines Sabotaged . | . . . . . Overloaded Fab Kills . | . . . . . Hacking | -11 -10 -10 -8 -7 --------- Run | Yrd Mat Sub Mat Fac Machines Accessed 4 | . . . 1 3 Terminals 4 | . . . 1 3 Fabricators . | . . . . . Repair Stations . | . . . . . Recycling Units . | . . . . . Scanalyzers . | . . . . . Garrison Access . | . . . . . Total Hacks 6 | . . . 1 5 Successful 2 | . . . . 2 Failed 4 | . . . 1 3 Catastrophic 1 | . . . . 1 Database Lockouts . | . . . . . Manual 7 | . . . 1 6 Terminals 6 | . . . 1 5 Fabricators . | . . . . . Repair Stations . | . . . . . Recycling Units . | . . . . . Scanalyzers . | . . . . . Garrison Access . | . . . . . Terminal Hacks 2 | . . . . 2 Part Schematic 1 | . . . . 1 Recall Investigation 1 | . . . . 1 Fabricator Hacks . | . . . . . Repair Station Hacks . | . . . . . Recycling Unit Hacks . | . . . . . Scanalyzer . | . . . . . Garrison Access Hacks . | . . . . . Unauthorized Hacks . | . . . . . Terminals . | . . . . . Fabricators . | . . . . . Repair Stations . | . . . . . Recycling Units . | . . . . . Scanalyzers . | . . . . . Garrison Access . | . . . . . Data Cores Recovered . | . . . . . Used . | . . . . . Hacking Detections . | . . . . . Full Trace Events 2 | . . . . 2 Feedback Events 1 | . . . . 1 Corruption 1 | . . . . 1 Feedback Blocked . | . . . . . Robot Schematics Acquired . | . . . . . Robots Built . | . . . . . Authchips . | . . . . . Time . | . . . . . Total Robot Build Rating . | . . . . . Part Schematics Acquired 1 | . . . . 1 Parts Built . | . . . . . Authchips . | . . . . . Time . | . . . . . Total Part Build Rating . | . . . . . Parts Repaired . | . . . . . Time . | . . . . . Parts Recycled . | . . . . . Recycled Matter . | . . . . . Retrieved Matter . | . . . . . Retrieved Components . | . . . . . Parts Scanalyzed . | . . . . . Part Schematics Acquired . | . . . . . Parts Damaged . | . . . . . Bothacking | -11 -10 -10 -8 -7 ------------ Run | Yrd Mat Sub Mat Fac Used RIF Installer . | . . . . . Robots Hacked . | . . . . . Non-combat . | . . . . . Combat . | . . . . . Robot Hacks Applied . | . . . . . Relay Couplers Released . | . . . . . Fabnet Peak Effective % . | . . . . . Robots Rewired . | . . . . . Allies Hacked . | . . . . . Hacks Repelled . | . . . . . Allies | -11 -10 -10 -8 -7 -------- Run | Yrd Mat Sub Mat Fac Total Allies . | . . . . . Largest Group . | . . . . . Highest-Rated Group . | . . . . . Highest-Rated Ally . | . . . . . Total Orders . | . . . . . Ally Attacks . | . . . . . Total Damage . | . . . . . Kills . | . . . . . Allies Corrupted . | . . . . . Allies Melted . | . . . . . Intel | -11 -10 -10 -8 -7 ------- Run | Yrd Mat Sub Mat Fac Active Infowar (turns) 20 | . . . . 20 Optics 20 | . . . . 20 Robot Analysis Total . | . . . . . Derelict Logs Recovered 2 | . . 2 . . Drone Launches . | . . . . . Drone Recoveries . | . . . . . Exploration | -11 -10 -10 -8 -7 ------------- Run | Yrd Mat Sub Mat Fac Turns Passed 1854 | 57 466 1095 80 156 Spaces Moved 1546 | 54 327 571 191 403 Core 141 | 54 75 12 . . Treads 498 | . . 498 . . Legs . | . . . . . Wheels . | . . . . . Hover . | . . . . . Flight 907 | . 252 61 191 403 Fastest Speed 34 | 50 37 37 34 34 Average Speed 81 | 89 53 144 34 34 Slowest Speed 160 | 100 150 160 37 37 Overloaded Moves . | . . . . . Propulsion Burnouts . | . . . . . Robots Hopped 14 | . 3 . 7 4 Potential Cave-ins . | . . . . . Cave-ins Triggered . | . . . . . Exploration Rate (%) 30 | 3 68 41 25 15 Regions Visited 4 Branch Regions 1 Pre-discovered Areas 2 | . . 2 . . Known Exits Taken . | . . . . . Unknown Exits Taken 4 | 1 1 1 1 . Scrap Searched 3 | . . 3 . . Spaces Dug . | . . . . . Terrain Destroyed 3 | . 3 . . . Melee . | . . . . . Projectile . | . . . . . AOE 3 | . 3 . . . Terrain Rammed 1 | . . 1 . . Walls Destroyed . | . . . . . Machines Disabled 1 | . . 1 . . Actions | -11 -10 -10 -8 -7 --------- Run | Yrd Mat Sub Mat Fac Total 1956 | 62 568 718 196 412 Wait 262 | . 212 41 8 1 Move 1516 | 53 320 570 178 395 Hop 12 | . 3 . 5 4 Pick Up 17 | 8 2 7 . . Fast Attach 12 | 1 3 4 1 3 Attach 13 | . 3 6 2 2 Detach 3 | . . . 1 2 Swap 3 | . 1 2 . . Drop 11 | . 2 9 . . Fire 96 | . 22 74 . . Melee . | . . . . . Ram 1 | . . 1 . . Kick . | . . . . . Crush . | . . . . . Escape Stasis . | . . . . . Rewire . | . . . . . Trap . | . . . . . Miscellaneous 10 | . . 4 1 5 Route ------- -11/Scrapyard -10/Materials (discovered 4 exits: [*Mat x2] / [*Min] / [*Sub]) -10/Subcaves -8/Materials -7/Factory History --------- Turn | Location | Event 2 | -11/Scrapyard | Discovered new exit (range 16) 58 | -11/Scrapyard | Entered Materials 305 | -10/Materials | Build established: Mutant 336 | -10/Materials | Discovered new exit (range 16) 391 | -10/Materials | Discovered new exit (range 16) 422 | -10/Materials | Discovered new exit (range 14) 502 | -10/Materials | Discovered new exit (range 7) 524 | -10/Materials | Entered Subcaves 1115 | -10/Subcaves | Core integrity fell below 50% 1420 | -10/Subcaves | Learned location of Zion (-7) 1582 | -10/Subcaves | Core integrity fell below 20% 1587 | -10/Subcaves | Released all parts (4) 1612 | -10/Subcaves | A swath of the cavern ceiling suddenly collapsed 1613 | -10/Subcaves | Discovered new exit (range 13) 1619 | -10/Subcaves | Entered Materials 1619 | -8/Materials | Evolved 4 slots: Propulsion x2, Utility x2 1694 | -8/Materials | Discovered new exit (range 15) 1699 | -8/Materials | Entered Factory 1699 | -7/Factory | Evolved 2 slots: Utility x2 1855 | -7/Factory | Self-destructed Last Messages --------------- O-24 Administrator locks terminal. Connecting with Terminal... >>Recall(Investigation) Establishing remote squad link... Recalled investigation squad A9B7SA31JW. Terminal reconfigured, -18% effectiveness. System corrupted: Multitool rejected. Acquired Multitool. Connecting with Terminal... NUUMD>C2U0ONM0CBGB 5|W R/LCY